fUSD/lending_fUSD_20260413
["ID","MTS","AMOUNT","RATE_DAILY","PERIOD"]
[420402832,1776081138323,-300.0,0.00041376,2]
[420402833,1776081138341,-1141.39472161,0.00041376,2]
[420402834,1776081138352,-308.02691286,0.00041376,2]
[420402835,1776081138361,-860.09385934,0.00041376,2]
[420402836,1776081138371,-300.0,0.00041376,2]
[420402837,1776081138384,-309.31036485,0.00041376,2]
[420402838,1776081138397,-461.52249302,0.00041376,2]
[420402839,1776081138408,-300.0,0.00041376,2]
[420402840,1776081138421,-432.38544327,0.00041376,2]
[420402841,1776081138430,-449.58254558,0.00041376,2]
[420402842,1776081138443,-300.0,0.00041376,2]
[420402843,1776081138458,-300.0,0.00041376,2]
[420402844,1776081138468,-303.34033539,0.00041376,2]
[420402845,1776081138482,-300.0,0.00041376,2]
[420402846,1776081138491,-300.0,0.00041376,2]
[420402847,1776081138523,-521.99006972,0.00041376,2]
[420402848,1776081138532,-308.26927858,0.00041376,2]
[420402849,1776081138542,-474.82116175,0.00041376,2]
[420402850,1776081138563,-300.0,0.00041376,2]
[420402851,1776081138573,-300.0,0.00041376,2]
[420402852,1776081138583,-1089.04236836,0.00041376,2]
[420402853,1776081138614,-300.0,0.00041376,2]
[420402854,1776081138625,-300.0,0.00041376,2]
[420402855,1776081138640,-300.0,0.00041376,2]
[420402856,1776081138651,-301.66663352,0.00041376,2]
[420402857,1776081138671,-541.69695512,0.00041376,2]
[420402858,1776081138687,-300.11446891,0.00041376,2]
[420402859,1776081138716,-300.0,0.00041376,2]
[420402860,1776081138727,-525.07236158,0.00041376,2]
[420402861,1776081138744,-1061.4322746,0.00041376,2]
[420402862,1776081138769,-899.36894383,0.00041376,2]
[420402863,1776081138779,-722.35976235,0.00041376,2]
[420402864,1776081138808,-300.26139515,0.00041376,2]
[420402865,1776081138818,-300.0,0.00041376,2]
[420402866,1776081138839,-300.0,0.00041376,2]
[420402867,1776081138861,-649.85498405,0.00041376,2]
[420402868,1776081138871,-300.0,0.00041376,2]
[420402869,1776081138880,-1141.39472161,0.00041376,2]
[420402870,1776081138898,-308.02691286,0.00041376,2]
[420402871,1776081138907,-860.09385934,0.00041376,2]
[420402872,1776081138920,-300.0,0.00041376,2]
[420402873,1776081138930,-309.31036485,0.00041376,2]
[420402874,1776081138950,-461.522493,0.00041376,2]
[420402875,1776081138960,-300.0,0.00041376,2]
[420402876,1776081138968,-432.38544327,0.00041376,2]
[420402877,1776081138978,-449.58254558,0.00041376,2]
[420402878,1776081138998,-300.0,0.00041376,2]
[420402879,1776081139007,-300.0,0.00041376,2]
[420402880,1776081139021,-303.34033539,0.00041376,2]
[420402881,1776081139034,-521.99006972,0.00041376,2]
[420402882,1776081139043,-308.26927858,0.00041376,2]
[420402883,1776081139054,-300.0,0.00041376,2]
[420402884,1776081139063,-350.0,0.00041376,2]
[420402885,1776081139074,-1089.04236839,0.00041376,2]
[420402886,1776081139083,-544.55417217,0.00041376,2]
[420402887,1776081139097,-300.0,0.00041376,2]
[420402888,1776081139106,-300.0,0.00041376,2]
[420402889,1776081139115,-300.0,0.00041376,2]
[420402890,1776081139134,-301.66663352,0.00041376,2]
[420402891,1776081139144,-300.11446891,0.00041376,2]
[420402892,1776081139162,-300.0,0.00041376,2]
[420402893,1776081139171,-525.07236158,0.00041376,2]
[420402894,1776081139183,-1061.4322746,0.00041376,2]
[420402895,1776081139193,-899.36894384,0.00041376,2]
[420402896,1776081139202,-722.35976235,0.00041376,2]
[420402897,1776081139211,-300.26139515,0.00041376,2]
[420402898,1776081139225,-300.0,0.00041376,2]
[420402899,1776081139234,-300.0,0.00041376,2]
[420402900,1776081139243,-649.85498406,0.00041376,2]
[420402901,1776081139255,-300.0,0.00041376,2]
[420402902,1776081139265,-1141.39472161,0.00041376,2]
[420402903,1776081139275,-308.02691286,0.00041376,2]
[420402904,1776081139285,-384.36290349,0.00041376,2]
[420402905,1776081139297,-860.09385934,0.00041376,2]
[420402906,1776081139307,-309.31036485,0.00041376,2]
[420402907,1776081139317,-461.52249302,0.00041376,2]
[420402908,1776081139329,-300.0,0.00041376,2]
[420402909,1776081139341,-432.38544327,0.00041376,2]
[420402910,1776081139350,-449.58254558,0.00041376,2]
[420402911,1776081139362,-300.0,0.00041376,2]
[420402912,1776081139372,-300.0,0.00041376,2]
[420402913,1776081139383,-303.34033539,0.00041376,2]
[420402914,1776081139395,-521.99006972,0.00041376,2]
[420402915,1776081139412,-308.26927858,0.00041376,2]
[420402916,1776081139422,-300.0,0.00041376,2]
[420402917,1776081139431,-1089.04236837,0.00041376,2]
[420402918,1776081139445,-377.64288071,0.00041376,2]
[420402919,1776081139454,-300.0,0.00041376,2]
[420402920,1776081139467,-300.0,0.00041376,2]
[420402921,1776081139478,-301.66663352,0.00041376,2]
[420402922,1776081139490,-300.11446891,0.00041376,2]
[420402923,1776081139502,-300.0,0.00041376,2]
[420402924,1776081139513,-525.07236158,0.00041376,2]
[420402925,1776081139528,-1061.4322746,0.00041376,2]
[420402926,1776081139538,-899.36894385,0.00041376,2]
[420402927,1776081139550,-540.8196762,0.00041376,2]
[420402928,1776081139559,-722.35976235,0.00041376,2]
[420402929,1776081139571,-300.4167631,0.00041376,2]
[420402930,1776081139580,-300.0,0.00041376,2]
[420402931,1776081139592,-300.0,0.00041376,2]
[420402932,1776081139602,-649.85498405,0.00041376,2]
[420402933,1776081139617,-300.0,0.00041376,2]
[420402934,1776081139626,-1141.39472161,0.00041376,2]
[420402935,1776081139638,-308.02691286,0.00041376,2]
[420402936,1776081139650,-860.09385934,0.00041376,2]
[420402937,1776081139664,-309.31036485,0.00041376,2]
[420402938,1776081139675,-461.522493,0.00041376,2]
[420402939,1776081139697,-300.0,0.00041376,2]
[420402940,1776081139706,-432.38544327,0.00041376,2]
[420402941,1776081139722,-449.58254558,0.00041376,2]
[420402942,1776081139738,-300.0,0.00041376,2]
[420402943,1776081139747,-300.0,0.00041376,2]
[420402944,1776081139758,-303.34033539,0.00041376,2]
[420402945,1776081139777,-521.99006972,0.00041376,2]
[420402946,1776081139787,-308.26927858,0.00041376,2]
[420402947,1776081139798,-300.0,0.00041376,2]
[420402948,1776081139810,-1089.04236837,0.00041376,2]
[420402949,1776081139827,-399.60047463,0.00041376,2]
[420402950,1776081139839,-300.0,0.00041376,2]
[420402951,1776081139852,-301.66663352,0.00041376,2]
[420402952,1776081139880,-300.11446891,0.00041376,2]
[420402953,1776081139891,-300.0,0.00041376,2]
[420402954,1776081139907,-525.07236158,0.00041376,2]
[420402955,1776081139925,-1061.43227463,0.00041376,2]
[420402956,1776081139939,-899.36894383,0.00041376,2]
[420402957,1776081139950,-540.8196762,0.00041376,2]
[420402958,1776081139975,-722.35976235,0.00041376,2]
[420402959,1776081139984,-300.29246874,0.00041376,2]
[420402960,1776081139999,-300.0,0.00041376,2]
[420402961,1776081140013,-300.0,0.00041376,2]
[420402962,1776081140035,-300.0,0.00041376,2]
[420402963,1776081140045,-649.85498405,0.00041376,2]
[420402964,1776081140054,-1141.39472161,0.00041376,2]
[420402965,1776081140072,-308.02691286,0.00041376,2]
[420402966,1776081140083,-860.09385934,0.00041376,2]
[420402967,1776081140093,-309.31036485,0.00041376,2]
[420402968,1776081140103,-300.0,0.00041376,2]
[420402969,1776081140123,-461.52249301,0.00041376,2]
[420402970,1776081140134,-432.38544327,0.00041376,2]
[420402971,1776081140143,-449.58254558,0.00041376,2]
[420402972,1776081140158,-300.0,0.00041376,2]
[420402973,1776081140174,-300.0,0.00041376,2]
[420402974,1776081140183,-303.34033539,0.00041376,2]
[420402975,1776081140192,-521.99006972,0.00041376,2]
[420402976,1776081140207,-308.26927858,0.00041376,2]
[420402977,1776081140220,-300.0,0.00041376,2]
[420402978,1776081140229,-1089.04236839,0.00041376,2]
[420402979,1776081140240,-300.0,0.00041376,2]
[420402980,1776081140265,-301.66663352,0.00041376,2]
[420402981,1776081140276,-300.11446891,0.00041376,2]
[420402982,1776081140286,-300.0,0.00041376,2]
[420402983,1776081140295,-525.07236158,0.00041376,2]
[420402984,1776081140314,-1061.4322746,0.00041376,2]
[420402985,1776081140324,-899.36894385,0.00041376,2]
[420402986,1776081140334,-540.8196762,0.00041376,2]
[420402987,1776081140347,-722.35976235,0.00041376,2]
[420402988,1776081140360,-300.29246874,0.00041376,2]
[420402989,1776081140370,-300.0,0.00041376,2]
[420402990,1776081140382,-300.0,0.00041376,2]
[420402991,1776081140394,-649.85498405,0.00041376,2]
[420402992,1776081140409,-572.69022333,0.00041376,2]
[420402993,1776081140423,-1141.39472161,0.00041376,2]
[420402994,1776081140433,-308.02691286,0.00041376,2]
[420402995,1776081140449,-860.09385934,0.00041376,2]
[420402996,1776081140461,-300.0,0.00041376,2]
[420402997,1776081140471,-309.31036485,0.00041376,2]
[420402998,1776081140481,-461.52249302,0.00041376,2]
[420402999,1776081140499,-300.0,0.00041376,2]
[420403000,1776081140508,-432.38544327,0.00041376,2]
[420403001,1776081140519,-449.58254558,0.00041376,2]
[420403002,1776081140531,-300.0,0.00041376,2]
[420403003,1776081140543,-478.52445181,0.00041376,2]
[420403004,1776081140553,-303.34033539,0.00041376,2]
[420403005,1776081140563,-521.99006972,0.00041376,2]
[420403006,1776081140581,-308.26927858,0.00041376,2]
[420403007,1776081140590,-300.0,0.00041376,2]
[420403008,1776081140602,-1089.0423684,0.00041376,2]
[420403009,1776081140616,-300.00000001,0.00041376,2]
[420403010,1776081140637,-301.66663352,0.00041376,2]
[420403011,1776081140646,-300.11446891,0.00041376,2]
[420403012,1776081140664,-300.0,0.00041376,2]
[420403013,1776081140675,-525.07236158,0.00041376,2]
[420403014,1776081140688,-1061.4322746,0.00041376,2]
[420403015,1776081140706,-899.36894383,0.00041376,2]
[420403016,1776081140722,-540.8196762,0.00041376,2]
[420403017,1776081140747,-722.35976235,0.00041376,2]
[420403018,1776081140785,-300.29246874,0.00041376,2]
[420403019,1776081140801,-505.48197669,0.00041376,2]
[420403020,1776081140837,-300.0,0.00041376,2]
[420403021,1776081140846,-649.85498405,0.00041376,2]
[420403022,1776081140871,-1141.39472161,0.00041376,2]
[420403023,1776081140904,-308.02691286,0.00041376,2]
[420403024,1776081140931,-860.09385934,0.00041376,2]
[420403025,1776081140956,-309.31036485,0.00041376,2]
[420403026,1776081140967,-461.522493,0.00041376,2]
[420403027,1776081140979,-300.0,0.00041376,2]
[420403028,1776081140989,-432.38544328,0.00041376,2]
[420403029,1776081140999,-449.58254558,0.00041376,2]
[420403030,1776081141010,-300.0,0.00041376,2]
[420403031,1776081141023,-303.34033539,0.00041376,2]
[420403032,1776081141040,-521.99006972,0.00041376,2]
[420403033,1776081141050,-308.26927858,0.00041376,2]
[420403034,1776081141059,-300.0,0.00041376,2]
[420403035,1776081141076,-301.66663352,0.00041376,2]
[420403036,1776081141087,-300.11446891,0.00041376,2]
[420403037,1776081141098,-300.0,0.00041376,2]
[420403038,1776081141111,-525.07236158,0.00041376,2]
[420403039,1776081141131,-899.36894385,0.00041376,2]
[420403040,1776081141141,-1061.4322746,0.00041376,2]
[420403041,1776081141152,-540.8196762,0.00041376,2]
[420403042,1776081141169,-722.35976235,0.00041376,2]
[420403043,1776081141187,-600.27420117,0.00041376,2]
[420403044,1776081141197,-300.0,0.00041376,2]
[420403045,1776081141208,-649.85498405,0.00041376,2]
[420403046,1776081141230,-1141.39472161,0.00041376,2]
[420403047,1776081141241,-308.02691286,0.00041376,2]
[420403048,1776081141255,-860.09385934,0.00041376,2]
[420403049,1776081141271,-309.31036485,0.00041376,2]
[420403050,1776081141288,-461.52249302,0.00041376,2]
[420403051,1776081141299,-300.0,0.00041376,2]
[420403052,1776081141314,-432.38544326,0.00041376,2]
[420403053,1776081141348,-449.58254558,0.00041376,2]
[420403054,1776081141360,-300.0,0.00041376,2]
[420403055,1776081141372,-303.34033539,0.00041376,2]
[420403056,1776081141438,-521.99006972,0.00041376,2]
[420403057,1776081141463,-308.26927858,0.00041376,2]
[420403058,1776081141486,-300.0,0.00041376,2]
[420403059,1776081141499,-1089.16001271,0.00041376,2]
[420403060,1776081141563,-301.66663352,0.00041376,2]
[420403061,1776081141583,-300.11446891,0.00041376,2]
[420403062,1776081141611,-300.0,0.00041376,2]
[420403063,1776081141638,-525.07236158,0.00041376,2]
[420403064,1776081141661,-899.36894383,0.00041376,2]
[420403065,1776081141687,-1061.43227464,0.00041376,2]
[420403066,1776081141699,-540.8196762,0.00041376,2]
[420403067,1776081141714,-722.35976235,0.00041376,2]
[420403068,1776081141730,-300.2613951,0.00041376,2]
[420403069,1776081141742,-300.0,0.00041376,2]
[420403070,1776081141754,-649.85498405,0.00041376,2]
[420403071,1776081141766,-1141.39472161,0.00041376,2]
[420403072,1776081141776,-308.02691286,0.00041376,2]
[420403073,1776081141789,-860.09385934,0.00041376,2]
[420403074,1776081141806,-309.31036485,0.00041376,2]
[420403075,1776081141819,-461.522493,0.00041376,2]
[420403076,1776081141849,-300.0,0.00041376,2]
[420403077,1776081141861,-432.38544327,0.00041376,2]
[420403078,1776081141882,-449.58254558,0.00041376,2]
[420403079,1776081141892,-300.0,0.00041376,2]
[420403080,1776081141905,-303.34033539,0.00041376,2]
[420403081,1776081141922,-521.99006972,0.00041376,2]
[420403082,1776081141932,-308.26927858,0.00041376,2]
[420403083,1776081141942,-300.0,0.00041376,2]
[420403084,1776081141952,-1089.16001271,0.00041376,2]
[420403085,1776081141969,-301.66663352,0.00041376,2]
[420403086,1776081141979,-300.11446891,0.00041376,2]
[420403087,1776081141994,-300.0,0.00041376,2]
[420403088,1776081142009,-525.07236158,0.00041376,2]
[420403089,1776081142019,-1061.43227461,0.00041376,2]
[420403090,1776081142031,-899.36894385,0.00041376,2]
[420403091,1776081142046,-540.8196762,0.00041376,2]
[420403092,1776081142057,-722.35976235,0.00041376,2]
[420403093,1776081142067,-300.26139511,0.00041376,2]
[420403094,1776081142085,-300.0,0.00041376,2]
[420403095,1776081142098,-649.85498405,0.00041376,2]
[420403096,1776081142109,-1141.39472161,0.00041376,2]
[420403097,1776081142119,-308.02691286,0.00041376,2]
[420403098,1776081142135,-309.31036485,0.00041376,2]
[420403099,1776081142155,-860.09385934,0.00041376,2]
[420403100,1776081142166,-461.52249302,0.00041376,2]
[420403101,1776081142178,-432.38544328,0.00041376,2]
[420403102,1776081142198,-449.58254558,0.00041376,2]
[420403103,1776081142210,-303.34033539,0.00041376,2]
[420403104,1776081142221,-521.99006972,0.00041376,2]
[420403105,1776081142249,-308.26927858,0.00041376,2]
[420403106,1776081142259,-300.0,0.00041376,2]
[420403107,1776081142269,-1089.16001271,0.00041376,2]
[420403108,1776081142291,-301.66663352,0.00041376,2]
[420403109,1776081142302,-300.0,0.00041376,2]
[420403110,1776081142314,-525.07236158,0.00041376,2]
[420403111,1776081142331,-1061.43227462,0.00041376,2]
[420403112,1776081142341,-899.36894383,0.00041376,2]
[420403113,1776081142351,-540.8196762,0.00041376,2]
[420403114,1776081142370,-722.35976235,0.00041376,2]
[420403115,1776081142380,-300.26139511,0.00041376,2]
[420403116,1776081142390,-300.0,0.00041376,2]
[420403117,1776081142404,-649.85498405,0.00041376,2]
[420403118,1776081142421,-1141.39472161,0.00041376,2]
[420403119,1776081142433,-308.02691286,0.00041376,2]
[420403120,1776081142446,-860.09385934,0.00041376,2]
[420403121,1776081142459,-309.31036485,0.00041376,2]
[420403122,1776081142468,-461.522493,0.00041376,2]
[420403123,1776081142487,-432.38544326,0.00041376,2]
[420403124,1776081142501,-449.58254558,0.00041376,2]
[420403125,1776081142523,-303.34033539,0.00041376,2]
[420403126,1776081142533,-521.99006972,0.00041376,2]
[420403127,1776081142543,-308.26927858,0.00041376,2]
[420403128,1776081142563,-300.0,0.00041376,2]
[420403129,1776081142575,-1089.16001271,0.00041376,2]
[420403130,1776081142585,-301.66663352,0.00041376,2]
[420403131,1776081142600,-300.0,0.00041376,2]
[420403132,1776081142613,-525.07236158,0.00041376,2]
[420403133,1776081142623,-1061.43227461,0.00041376,2]
[420403134,1776081142638,-899.36894385,0.00041376,2]
[420403135,1776081142651,-540.8196762,0.00041376,2]
[420403136,1776081142661,-722.35976235,0.00041376,2]
[420403137,1776081142672,-300.26139511,0.00041376,2]
[420403138,1776081142687,-300.0,0.00041376,2]
[420403139,1776081142699,-649.85498405,0.00041376,2]
[420403140,1776081142709,-1141.39472161,0.00041376,2]
[420403141,1776081142722,-308.02691286,0.00041376,2]
[420403142,1776081142733,-860.09385934,0.00041376,2]
[420403143,1776081142744,-309.31036485,0.00041376,2]
[420403144,1776081142755,-461.52249302,0.00041376,2]
[420403145,1776081142771,-432.38544327,0.00041376,2]
[420403146,1776081142782,-449.58254558,0.00041376,2]
[420403147,1776081142805,-303.34033539,0.00041376,2]
[420403148,1776081142816,-521.99006972,0.00041376,2]
[420403149,1776081142827,-308.26927858,0.00041376,2]
[420403150,1776081142849,-300.0,0.00041376,2]
[420403151,1776081142862,-1089.16001271,0.00041376,2]
[420403152,1776081142873,-301.66663352,0.00041376,2]
[420403153,1776081142902,-300.0,0.00041376,2]
[420403154,1776081142913,-525.07236158,0.00041376,2]
[420403155,1776081142923,-1061.4322746,0.00041376,2]
[420403156,1776081142946,-899.36894383,0.00041376,2]
[420403157,1776081142956,-540.8196762,0.00041376,2]
[420403158,1776081142967,-722.35976235,0.00041376,2]
[420403159,1776081142993,-300.26139511,0.00041376,2]
[420403160,1776081143003,-300.0,0.00041376,2]
[420403161,1776081143021,-649.85498405,0.00041376,2]
[420403162,1776081143041,-300.0,0.00041376,2]
[420403163,1776081143055,-1141.39472161,0.00041376,2]
[420403164,1776081143067,-308.02691286,0.00041376,2]
[420403165,1776081143084,-860.09385934,0.00041376,2]
[420403166,1776081143100,-309.31036485,0.00041376,2]
[420403167,1776081143121,-461.522493,0.00041376,2]
[420403168,1776081143131,-432.38544327,0.00041376,2]
[420403169,1776081143148,-449.58254558,0.00041376,2]
[420403170,1776081143178,-303.34033539,0.00041376,2]
[420403171,1776081143197,-521.99006972,0.00041376,2]
[420403172,1776081143215,-308.26927858,0.00041376,2]
[420403173,1776081143225,-300.0,0.00041376,2]
[420403174,1776081143245,-1089.16001271,0.00041376,2]
[420403175,1776081143263,-301.66663352,0.00041376,2]
[420403176,1776081143274,-300.0,0.00041376,2]
[420403177,1776081143313,-1000.0,0.00041391,120]
[420403178,1776081143335,-1000.0,0.000414,120]
[420403179,1776081143358,-500.0,0.00041432,120]
[420403180,1776081143594,-3000.0,0.0004144,90]
[420403181,1776081143612,-360.34,0.00041455,120]
[420403182,1776081143622,-157.09749239,0.00041465,2]
[420403183,1776081143633,-150.0,0.00041484,120]
[420403184,1776081143643,-1000.0,0.000415,120]
[420403185,1776081143660,-167.36,0.000415,60]
[420403186,1776081143670,-1000.0,0.00041505,120]
[420403187,1776081143682,-1500.0,0.00041506,120]
[420403188,1776081143696,-150.0,0.0004151,120]
[420403189,1776081143709,-21347.37,0.00041518,110]
[420403190,1776081143721,-200.0,0.00041554,8]
[420403191,1776081143731,-200.0,0.00041555,8]
[420403192,1776081143744,-200.0,0.00041555,8]
[420403193,1776081143765,-1000.0,0.000416,120]
[420403194,1776081143778,-150.0,0.00041608,120]
[420403195,1776081143807,-50000.0,0.00041643,120]
[420403196,1776081143817,-1500.0,0.00041643,120]
[420403197,1776081143829,-500.0,0.00041653,120]
[420403198,1776081143855,-6355.77768917,0.00041664,2]
[420403199,1776081143865,-500.0,0.00041671,120]
[420403200,1776081143890,-204.42,0.00041671,120]
[420403201,1776081143902,-1100.0,0.00041686,30]
[420403202,1776081143924,-1693.35,0.00041695,120]
[420403203,1776081143939,-157.09749239,0.00041739,2]
[420403204,1776081143949,-500.0,0.00041751,120]
[420403205,1776081143963,-1000.0,0.000418,120]
[420403206,1776081143984,-1000.0,0.000418,120]
[420403207,1776081143994,-100000.0,0.000418,33]
[420403208,1776081144008,-19127.85238546,0.000418,15]
[420403209,1776081144028,-3201.01,0.000418,90]
[420403210,1776081144042,-50000.0,0.000418,120]
[420403211,1776081144062,-7599.27,0.00041848,30]
[420403212,1776081144071,-5530.02781614,0.0004188,110]
[420403213,1776081144084,-150.0,0.00041892,120]
[420403214,1776081144098,-150.0,0.00041892,120]
[420403215,1776081144144,-1000.0,0.00041895,120]
[420403216,1776081144158,-1000.0,0.000419,120]
[420403217,1776081144169,-1000.0,0.000419,120]
[420403218,1776081144189,-154.0,0.000419,120]
[420403219,1776081144199,-216.56866714,0.000419,120]
[420403220,1776081144209,-210.64706599,0.000419,120]
[420403221,1776081144235,-2281.11035508,0.000419,120]
[420403222,1776081144245,-50000.0,0.00041917,120]
[420403223,1776081144256,-2500.0,0.00041917,120]
[420403224,1776081144279,-2500.0,0.00041917,120]
[420403225,1776081144289,-2500.0,0.00041917,120]
[420403226,1776081144300,-2500.0,0.00041917,120]
[420403227,1776081144311,-2500.0,0.00041917,120]
[420403228,1776081144326,-2500.0,0.00041917,120]
[420403229,1776081144336,-2500.0,0.00041917,120]
[420403230,1776081144345,-2500.0,0.00041917,120]
[420403231,1776081144355,-2500.0,0.00041917,120]
[420403232,1776081144370,-2500.0,0.00041917,120]
[420403233,1776081144381,-2500.0,0.00041917,120]
[420403234,1776081144390,-2500.0,0.00041917,120]
[420403235,1776081144402,-2500.0,0.00041917,120]
[420403236,1776081144412,-2500.0,0.00041917,120]
[420403237,1776081144422,-2500.0,0.00041917,120]
[420403238,1776081144445,-2500.0,0.00041917,120]
[420403239,1776081144456,-2500.0,0.00041917,120]
[420403240,1776081144466,-2500.0,0.00041917,120]
[420403241,1776081144480,-2500.0,0.00041917,120]
[420403242,1776081144491,-2500.0,0.00041917,120]
[420403243,1776081144501,-1226.20568425,0.00041917,120]
[420403244,1776081144511,-500.0,0.00041947,120]
[420403245,1776081144524,-7762.25609472,0.00041955,80]
[420403246,1776081144536,-6249.0,0.00041978,5]
[420403247,1776081144546,-1000.0,0.00042,120]
[420403248,1776081144558,-500.0,0.00042,2]
[420403249,1776081144569,-3229.7343394,0.00042,120]
[420403250,1776081144580,-500.0,0.00042,120]
[420403251,1776081144591,-5000.0,0.00042,30]
[420403252,1776081144610,-104235.1668048,0.00042,20]
[420403253,1776081144621,-100000.0,0.00042,20]
[420403254,1776081144647,-4404.0,0.00042,120]
[420403255,1776081144658,-61267.01054213,0.00042,30]
[420403256,1776081144675,-657.0,0.00042,120]
[420403257,1776081144694,-500.0,0.00042,120]
[420403258,1776081144711,-500.0,0.00042,120]
[420403259,1776081144750,-334.04732712,0.00042,30]
[420403260,1776081144841,-5435.67,0.00042,60]
[420403261,1776081144855,-960.28510432,0.00042,120]
[420403262,1776081144881,-50050.0,0.00042,120]
[420403263,1776081144892,-50000.0,0.00042,120]
[420403264,1776081144928,-100000.0,0.00042,30]
[420403265,1776081144938,-100000.0,0.00042,30]
[420403266,1776081144958,-100000.0,0.00042,30]
[420403267,1776081144975,-1000.0,0.00042,120]
[420403268,1776081144985,-3970.10188701,0.00042,120]
[420403269,1776081145000,-2686.0,0.00042,120]
[420403270,1776081145018,-3186.0,0.00042,120]
[420403271,1776081145036,-2000.0,0.00042,120]
[420403272,1776081145049,-2000.0,0.00042,120]
[420403273,1776081145058,-20000.0,0.00042,15]
[420403274,1776081145068,-465.8379207,0.00042,120]
[420403275,1776081145087,-164.2194,0.00042,120]
[420403276,1776081145097,-895.25,0.00042,120]
[420403277,1776081145108,-51348.31,0.00042,120]
[420403278,1776081145119,-11459.0,0.00042,120]
[420403279,1776081145141,-50000.0,0.00042,90]
[420403280,1776081145166,-1540.94,0.00042,60]
[420403281,1776081145179,-1726.96,0.00042,60]
[420403282,1776081145189,-307.44,0.00042,60]
[420403283,1776081145212,-2233.18432703,0.00042,120]
[420403284,1776081145224,-44160.94649336,0.00042,120]
[420403285,1776081145234,-2000.0,0.00042,120]
[420403286,1776081145249,-100000.0,0.00042,30]
[420403287,1776081145266,-5698.05175941,0.00042,120]
[420403288,1776081145289,-658.27441939,0.00042,120]
[420403289,1776081145305,-50024.80191611,0.00042,30]
[420403290,1776081145317,-5332.03738938,0.00042,45]
[420403291,1776081145339,-300.0,0.00042,120]
[420403292,1776081145351,-395.0,0.00042,120]
[420403293,1776081145381,-313.0,0.00042,120]
[420403294,1776081145392,-500.0,0.00042,120]
[420403295,1776081145401,-1379.25541944,0.0004201,2]
[420403296,1776081145417,-157.09749239,0.00042013,2]
[420403297,1776081145428,-186.45671531,0.0004205,2]
[420403298,1776081145439,-540.67,0.0004205,91]
[420403299,1776081145454,-1000.0,0.00042095,120]
[420403300,1776081145470,-1000.0,0.000421,120]
[420403301,1776081145479,-1000.0,0.00042111,120]
[420403302,1776081145491,-162.224317,0.00042136,120]
[420403303,1776081145512,-1100.0,0.00042139,30]
[420403304,1776081145521,-3678.98,0.0004218,90]
[420403305,1776081145535,-877.67746945,0.0004219,120]
[420403306,1776081145548,-500.0,0.00042191,120]
[420403307,1776081145567,-500.0,0.00042191,120]
[420403308,1776081145597,-389.86585856,0.00042191,120]
[420403309,1776081145607,-50000.0,0.00042191,120]
[420403310,1776081145621,-5693.86171539,0.000422,2]
[420403311,1776081145638,-63183.0,0.000422,35]
[420403312,1776081145650,-2535.9,0.000422,120]
[420403313,1776081145666,-1000.0,0.000422,120]
[420403314,1776081145678,-3000.0,0.000422,90]
[420403315,1776081145689,-2000.0,0.0004222,90]
[420403316,1776081145702,-1000.0,0.00042233,120]
[420403317,1776081145713,-500.0,0.00042242,120]
[420403318,1776081145729,-157.09749239,0.00042287,2]
[420403319,1776081145739,-972.81,0.000423,120]
[420403320,1776081145751,-30563.0,0.000423,60]
[420403321,1776081145765,-500.0,0.00042359,120]
[420403322,1776081145774,-1000.0,0.00042389,120]
[420403323,1776081145787,-1000.0,0.000424,120]
[420403324,1776081145806,-20178.6610039,0.000424,118]
[420403325,1776081145816,-55713.90201144,0.000424,120]
[420403326,1776081145828,-150.0,0.00042426,120]
[420403327,1776081145839,-740.35650039,0.00042429,92]
[420403328,1776081145864,-156.59,0.00042451,30]
[420403329,1776081145878,-50000.0,0.00042465,120]
[420403330,1776081145900,-500.0,0.00042471,120]
[420403331,1776081145916,-187.3620966,0.00042492,120]